bitfinex-derivatives/quotes_ETHF0:USTF0_20240901
["timestamp","ask_amount","ask_price","bid_price","bid_amount"]
[1725169779700,0.24314,2467.8,2467.7,0.00608014]
[1725169780002,0.24314,2467.9,2467.7,0.00608014]
[1725169780507,4.4969,2468.0,2467.7,0.00608014]
[1725169781103,4.74002,2468.0,2467.7,0.00608014]
[1725169781500,0.24313,2467.9,2467.7,0.00608014]
[1725169781802,4.74002,2468.0,2467.7,0.00608014]
[1725169782003,2.08029381,2468.4,2467.9,2.8]
[1725169782196,4.4163,2469.0,2468.3,2.8]
[1725169782399,4.4163,2469.0,2468.4,0.39369747]
[1725169782597,4.4163,2469.0,2468.4,0.24307]
[1725169783706,4.4163,2469.0,2468.5,0.39367796]
[1725169784006,4.65932,2469.0,2468.3,3.04308]
[1725169784205,4.65932,2469.0,2468.4,0.39367805]
[1725169784398,4.4163,2469.0,2468.5,0.39367805]
[1725169784599,4.4163,2469.0,2468.3,0.24308]
[1725169784808,7.6241,2469.0,2468.4,0.39368447]
[1725169785002,0.24304,2468.8,2468.3,0.39370141]
[1725169785304,0.24304,2468.8,2468.2,6.9378]
[1725169787700,7.6241,2469.0,2468.2,6.9378]
[1725169787903,0.24307,2468.5,2468.1,0.39374647]
[1725169788207,2.2917,2468.4,2468.1,0.39374647]
[1725169788406,2.2917,2468.4,2468.0,2.3165]
[1725169788606,2.2917,2468.4,2467.9,3.2078]
[1725169788809,0.24311,2468.2,2467.7,0.00608014]
[1725169789008,0.24311,2468.2,2467.8,0.39378528]
[1725169789308,0.24311,2468.2,2467.7,0.00608014]
[1725169789804,0.24311,2468.2,2467.8,0.39379401]
[1725169790009,0.24311,2468.2,2467.7,0.00608014]
[1725169790211,12.4680256,2468.4,2467.7,0.00608014]
[1725169790212,4.35908224,2468.1,2467.7,0.00608014]
[1725169790506,0.24313,2468.0,2467.7,0.00608014]
[1725169790714,3.2078,2467.8,2467.7,0.00608014]
[1725169790902,3.45094,2467.8,2467.7,0.00608014]
[1725169791097,7.50294,2467.8,2467.7,0.00608014]
[1725169792613,7.2598,2467.8,2467.7,0.00608014]
[1725169792908,3.2078,2467.8,2467.7,0.00608014]
[1725169793112,7.2598,2467.8,2467.7,0.00608014]
[1725169793513,3.2078,2467.8,2467.7,0.00608014]
[1725169793916,3.2078,2467.8,2467.7,4.69505673]
[1725169794103,0.2431,2468.2,2467.7,0.39990673]
[1725169794298,0.2431,2468.2,2467.7,0.00608014]
[1725169794505,2.3048,2468.3,2467.8,3.2078]
[1725169794703,2.3048,2468.3,2467.7,0.00608014]
[1725169795012,0.24311,2468.1,2467.7,0.00608014]
[1725169795306,4.44144623,2468.0,2467.7,0.00608014]
[1725169795509,0.24313,2467.9,2467.7,0.00608014]
[1725169795699,4.29513,2467.9,2467.7,0.00608014]
[1725169795899,2.3048,2467.8,2467.7,0.00608014]
[1725169796102,2.54794,2467.8,2467.7,0.00608014]
[1725169796406,8.81654,2467.8,2467.7,0.00608014]
[1725169799617,14.81654,2467.8,2467.7,0.00608014]
[1725169799810,22.15577416,2467.8,2467.1,0.44297791]
[1725169800010,12.10377416,2467.8,2467.2,0.39389031]
[1725169800206,0.24315,2467.7,2467.1,0.44297791]
[1725169800411,0.24315,2467.7,2467.2,0.39387978]
[1725169800613,0.24316,2467.6,2467.1,0.44297791]
[1725169800808,0.24316,2467.6,2467.1,0.44703131]
[1725169802020,0.24317,2467.5,2467.1,0.20383131]
[1725169802318,12.10377416,2467.8,2467.1,3.65484131]
[1725169802521,12.10377416,2467.8,2467.2,0.39388783]
[1725169802522,0.24315,2467.7,2467.2,0.39388783]
[1725169802710,0.24316,2467.6,2467.1,3.41163131]
[1725169802906,5.86658646,2467.9,2467.4,3.2078]
[1725169802907,3.69028646,2467.9,2467.4,3.2078]
[1725169803122,3.69028646,2467.9,2467.5,2.2403]
[1725169803415,2.1226,2468.1,2467.5,2.48346]
[1725169803719,2.1226,2468.1,2467.7,0.24315]
[1725169803921,6.89808646,2468.2,2467.6,1.4595]
[1725169804112,6.89808646,2468.2,2467.7,0.39379061]
[1725169804313,6.89808646,2468.2,2467.8,2.8]
[1725169804710,6.89808646,2468.2,2468.0,2.8]
[1725169805011,6.89808646,2468.2,2468.1,2.2824]
[1725169805213,3.6653097,2471.0,2469.7,3.2078]
[1725169805410,5.91651046,2471.0,2470.4,3.2078]
[1725169805717,5.91651046,2471.0,2469.8,1.97991698]
[1725169805718,2.60976817,2470.2,2470.0,1.05743588]
[1725169805920,2.60976817,2470.2,2469.9,2.8]
[1725169805921,2.60976817,2470.2,2470.1,3.60122343]
[1725169806310,2.60976817,2470.2,2470.1,3.2078]
[1725169806714,5.31847863,2470.2,2470.1,3.2078]
[1725169806920,5.31847863,2470.2,2470.0,3.2078]
[1725169807116,2.60976817,2470.1,2470.0,3.2078]
[1725169807422,2.60976817,2470.1,2470.0,3.79652277]
[1725169807624,5.31847863,2470.1,2470.0,3.79652277]
[1725169807818,7.86818863,2470.1,2470.0,3.2078]
[1725169808015,7.86818863,2470.1,2469.9,0.00608014]
[1725169808217,2.60976817,2470.0,2469.9,0.00608014]
[1725169808713,5.31847863,2470.0,2469.9,0.00608014]
[1725169810418,11.56139863,2470.0,2469.9,0.00608014]
[1725169810624,0.24295,2469.7,2469.3,6.9378]
[1725169810827,2.60976817,2469.4,2469.3,3.2078]
[1725169811020,2.60976817,2469.4,2469.3,3.79660105]
[1725169811220,5.31847863,2469.4,2469.3,3.79660105]
[1725169811521,5.56145863,2469.4,2469.3,3.2078]
[1725169811924,11.56145863,2469.4,2469.3,3.2078]
[1725169812129,11.56145863,2469.4,2469.1,0.0040534]
[1725169812130,0.243,2469.2,2469.1,0.0040534]
[1725169812321,2.85276817,2469.2,2469.1,0.0040534]
[1725169812523,5.56147863,2469.2,2469.1,0.0040534]
[1725169814131,11.56147863,2469.2,2469.1,0.0040534]
[1725169814337,0.24305,2468.8,2468.3,0.58892142]
[1725169814530,3.2078,2469.0,2468.4,0.58892142]
[1725169814729,0.24307,2468.5,2468.2,3.2078]
[1725169815223,2.95178046,2468.5,2468.2,3.2078]
[1725169815833,2.70871046,2468.5,2468.2,3.2078]
[1725169816028,0.00608014,2468.6,2468.2,3.2078]
[1725169816029,0.00608014,2468.6,2468.3,0.58894729]
[1725169816338,0.24307,2468.5,2468.2,3.2078]
[1725169816526,2.95178046,2468.5,2468.2,3.2078]
[1725169817336,2.70871046,2468.5,2468.2,3.2078]
[1725169817538,2.70871046,2468.5,2467.7,4.7859945]
[1725169817539,0.2431,2468.2,2467.9,3.2078]
[1725169817722,0.2431,2468.2,2467.7,3.2078]
[1725169818031,0.2431,2468.2,2467.8,0.58902473]
[1725169818032,2.95181046,2468.2,2467.8,0.58902473]
[1725169818221,2.95181046,2468.2,2467.7,3.2078]
[1725169818420,0.24311,2468.1,2467.8,0.5890296]
[1725169818624,0.24311,2468.1,2467.7,3.2078]
[1725169818825,2.95182046,2468.1,2467.8,0.58903553]
[1725169819033,2.95182046,2468.1,2467.7,3.2078]
[1725169819230,0.24315,2467.7,2467.5,0.58904852]
[1725169819428,0.24315,2467.7,2467.4,5.378]
[1725169819622,0.24316,2467.6,2467.4,3.2078]
[1725169820027,2.95187046,2467.6,2467.4,3.2078]
[1725169820637,2.70871046,2467.6,2467.4,3.2078]
[1725169821029,2.95187046,2467.6,2467.4,3.2078]
[1725169821229,0.24317,2467.5,2467.4,3.2078]
[1725169821435,0.24317,2467.5,2467.1,3.73]
[1725169821634,0.24318,2467.4,2467.1,3.73]
[1725169822135,0.24318,2467.4,2467.1,4.31913546]
[1725169822136,2.95189046,2467.4,2467.1,4.31913546]
[1725169822729,0.24319,2467.3,2467.0,3.2078]
[1725169822931,2.70871046,2467.4,2467.0,3.79694799]
[1725169823133,2.70871046,2467.4,2467.0,3.2078]
[1725169823134,0.2432,2467.2,2467.0,3.2078]
[1725169823530,2.95191046,2467.2,2467.0,3.2078]
[1725169823736,2.70871046,2467.2,2467.0,3.2078]
[1725169824647,0.00608014,2467.3,2467.1,4.0536]
[1725169824840,2.7147906,2467.3,2467.0,3.79696492]
[1725169825036,2.7147906,2467.3,2467.0,3.2078]
[1725169825243,2.7147906,2467.3,2467.0,3.79696492]
[1725169825441,2.7147906,2467.3,2467.0,3.2078]
[1725169831043,3.45087,2468.5,2467.8,0.24314]
[1725169831244,0.60758,2469.0,2467.8,0.24314]
[1725169831245,2.3216,2468.7,2467.8,6.9378]
[1725169831546,0.24306,2468.6,2467.8,7.18094]
[1725169831944,3.2078,2469.9,2468.5,6.9378]
[1725169832241,0.00608014,2469.4,2469.1,3.2078]
[1725169832443,0.00608014,2469.4,2468.8,3.2078]
[1725169832444,0.24299,2469.3,2468.8,3.2078]
[1725169832640,0.24301,2469.1,2468.8,3.2078]
[1725169832842,0.24303,2468.9,2468.5,3.2078]
[1725169833046,4.22128757,2469.0,2468.5,3.2078]
[1725169833241,0.18051924,2468.8,2468.5,3.2078]
[1725169833633,2.2139,2468.7,2468.5,3.2078]
[1725169834538,4.0512,2468.6,2468.5,3.2078]
[1725169834740,10.84848467,2468.6,2468.5,3.2078]
[1725169835150,11.09154467,2468.6,2468.5,3.2078]
[1725169835543,0.24309,2468.4,2468.2,3.2078]
[1725169835738,0.24309,2468.3,2468.2,3.2078]
[1725169835935,8.95090659,2468.3,2468.2,3.2078]
[1725169836145,14.95090659,2468.3,2468.2,3.2078]
[1725169837239,14.95090659,2468.3,2468.1,0.00608014]
[1725169837240,0.2431,2468.2,2468.1,0.00608014]
[1725169837440,0.24312,2468.1,2467.7,3.2078]
[1725169837647,2.2324,2468.0,2467.7,3.2078]
[1725169837953,6.48881905,2468.0,2467.7,3.2078]
[1725169838649,0.24313,2467.9,2467.7,3.2078]
[1725169839154,8.95341589,2467.8,2467.3,3.2078]
[1725169839341,4.90141589,2467.8,2467.3,3.2078]
[1725169839543,0.24315,2467.8,2467.3,3.2078]
[1725169839742,4.47445814,2467.7,2467.3,3.2078]
[1725169840449,0.24315,2467.7,2467.3,3.2078]
[1725169840748,4.38767294,2467.6,2467.3,3.2078]
[1725169840947,0.24318,2467.4,2466.9,3.2078]
[1725169841155,4.38767294,2467.6,2466.9,3.2078]
[1725169841156,0.24319,2467.3,2466.9,3.2078]
[1725169842751,0.24321,2467.2,2466.9,3.2078]
[1725169842953,0.24322,2467.0,2466.9,3.2078]
[1725169843156,0.24322,2467.0,2466.6,3.2078]
[1725169843449,0.24930014,2467.0,2466.6,3.2078]
[1725169843654,0.24324,2466.8,2466.6,3.2078]
[1725169843853,4.38948249,2466.9,2466.6,3.2078]
[1725169844059,0.00608014,2467.0,2466.6,3.2078]
[1725169845356,0.00608014,2467.0,2466.9,3.2078]
[1725169846244,4.05968014,2467.0,2466.9,3.2078]
[1725169846453,0.00608014,2467.0,2466.9,3.2078]
[1725169846649,4.05968014,2467.0,2466.9,3.2078]
[1725169847045,14.79964695,2467.0,2466.6,3.2078]
[1725169847252,4.74604695,2467.0,2466.6,3.2078]
[1725169847751,0.24323,2466.9,2466.6,3.2078]
[1725169848146,0.24324,2466.8,2466.6,3.2078]
[1725169848351,2.53233,2466.9,2466.6,3.2078]
[1725169848553,4.53842785,2466.8,2466.6,3.2078]
[1725169850656,0.00608014,2467.0,2466.6,3.2078]
[1725169851373,0.00608014,2467.0,2466.6,3.45106]
[1725169851852,0.00608014,2467.0,2466.6,3.2078]
[1725169852059,0.00608014,2467.0,2466.9,3.2078]
[1725169852649,0.00608014,2467.0,2466.9,7.2614]
[1725169853156,0.00608014,2467.0,2466.9,7.50463]
[1725169853758,0.00608014,2467.0,2466.9,7.2614]
[1725169854754,0.00608014,2467.0,2466.9,13.2614]
[1725169854958,2.1715,2468.2,2466.9,13.667]
[1725169855159,2.1715,2468.2,2467.9,3.2078]
[1725169855552,2.1715,2468.2,2467.6,3.2078]
[1725169855762,4.15954095,2468.1,2467.6,3.2078]
[1725169855963,4.16562109,2468.1,2467.6,3.21388014]
[1725169856356,0.00608014,2468.1,2467.7,0.58905164]
[1725169856557,0.00608014,2468.1,2467.6,3.21388014]
[1725169856760,0.00608014,2468.1,2467.7,0.58905775]
[1725169857062,0.00608014,2468.1,2467.6,3.21388014]
[1725169857250,0.00608014,2468.1,2467.7,0.58906281]
[1725169857450,0.00608014,2468.1,2468.0,3.73]
[1725169857662,0.00608014,2468.1,2468.0,5.17790148]
[1725169857861,0.00608014,2468.1,2468.0,10.24095962]
[1725169858059,3.69028646,2468.8,2468.0,12.51095962]
[1725169858260,3.69028646,2468.8,2468.7,3.2078]
[1725169858561,4.6118,2468.9,2468.7,3.7967254]
[1725169858757,4.6118,2468.9,2468.7,3.2078]
[1725169859263,0.00608014,2469.0,2468.8,0.58891584]
[1725169859567,0.00608014,2469.0,2468.9,1.44745805]
[1725169860562,0.00608014,2469.0,2468.9,5.49785805]
[1725169860955,0.00608014,2469.0,2468.9,4.90891219]
[1725169861166,0.00608014,2469.0,2468.9,6.50816704]
[1725169861460,0.00608014,2469.0,2468.9,5.49775363]
[1725169861662,0.00608014,2469.0,2468.9,12.50816704]
[1725169861858,0.00608014,2469.0,2468.9,5.49775363]
[1725169862664,0.00608014,2469.0,2468.9,0.58884144]
[1725169863358,0.00608014,2469.0,2468.7,3.2078]
[1725169863559,0.00608014,2469.0,2468.8,0.58889014]
[1725169863766,0.00608014,2469.0,2468.7,3.2078]
[1725169864968,8.38690221,2468.9,2468.7,3.2078]
[1725169865269,8.38690221,2468.9,2468.1,3.2078]
[1725169865270,0.24308,2468.4,2468.1,3.2078]
[1725169865576,4.70236344,2468.3,2468.1,3.2078]
[1725169865869,0.24307,2468.5,2468.1,3.2078]
[1725169866068,0.24308,2468.4,2468.1,3.2078]
[1725169866266,0.2431,2468.3,2468.1,3.2078]
[1725169866468,6.86175832,2468.4,2468.1,3.2078]
[1725169866469,10.91295832,2468.4,2468.1,3.2078]
[1725169866672,4.54595832,2468.2,2468.1,3.2078]
[1725169866867,4.54595832,2468.3,2468.1,3.2078]
[1725169867368,4.0512,2468.2,2467.7,3.79682688]
[1725169867572,2.2081,2468.1,2467.7,3.2078]
[1725169867765,6.69272062,2468.1,2467.7,3.2078]
[1725169868265,6.44960062,2468.1,2467.7,3.2078]
[1725169868666,6.44960062,2468.1,2467.6,0.00608014]
[1725169868667,0.24315,2467.7,2467.6,0.00608014]
[1725169868872,4.052,2468.0,2467.6,0.00608014]
[1725169868873,0.24314,2467.8,2467.6,0.00608014]
[1725169869177,4.052,2468.0,2467.6,0.00608014]
[1725169869178,4.66778483,2467.7,2467.6,0.00608014]
[1725169869470,0.24314,2467.8,2467.6,0.00608014]
[1725169869671,0.24315,2467.7,2467.6,0.00608014]
[1725169870060,4.29595,2467.7,2467.6,0.00608014]
[1725169870263,4.29595,2467.7,2467.4,3.2078]
[1725169870264,0.24317,2467.5,2467.4,3.2078]
[1725169870671,17.71880744,2467.5,2466.7,3.2078]
[1725169870978,17.71880744,2467.5,2466.8,0.58918471]
[1725169870979,2.43398,2467.4,2466.8,0.58918471]
[1725169871170,2.43398,2467.4,2467.0,3.2078]
[1725169871171,0.00608014,2467.3,2467.0,3.2078]
[1725169871467,4.52554367,2467.3,2467.0,3.2078]
[1725169871862,4.28235367,2467.3,2467.0,3.2078]
[1725169872174,0.00608014,2467.3,2467.0,3.2078]
[1725169872362,0.00608014,2467.3,2466.9,0.00608014]
[1725169872568,0.24927014,2467.3,2466.9,0.00608014]
[1725169872862,0.2432,2467.2,2466.9,0.00608014]
[1725169873068,4.33839868,2467.2,2466.9,0.00608014]
[1725169873267,4.58159868,2467.2,2466.9,0.00608014]
[1725169873877,3.45102,2467.0,2466.9,0.00608014]
[1725169874073,0.24324,2466.8,2466.1,3.73]
[1725169874375,4.35361815,2466.7,2466.2,0.83256078]
[1725169874573,4.35361815,2466.7,2466.3,3.79706078]
[1725169874770,0.24323,2466.9,2466.3,3.2078]
[1725169875776,0.24323,2466.9,2466.3,3.79704374]
[1725169876068,0.24323,2466.9,2466.3,3.2078]
[1725169876271,4.61424216,2466.8,2466.3,3.2078]
[1725169876971,4.61424216,2466.8,2466.4,0.24327]
[1725169877161,0.2432,2467.2,2466.4,0.24327]
[1725169877569,3.21388014,2467.3,2466.3,3.45109]
[1725169877570,4.27459306,2467.1,2466.3,3.45109]
[1725169877777,0.24323,2466.9,2466.3,3.2078]
[1725169878071,4.27459306,2466.8,2466.2,0.58925884]
[1725169878275,4.27459306,2466.8,2466.1,3.9733]
[1725169878475,4.51783306,2466.8,2466.2,0.58926488]
[1725169878663,4.51783306,2466.8,2466.1,3.9733]
[1725169878869,2.3193,2466.7,2466.2,0.58926472]
[1725169879175,6.86765762,2466.7,2466.1,3.9733]
[1725169879369,6.86765762,2466.7,2466.2,0.83256697]
[1725169879564,6.86765762,2466.7,2466.3,0.58926697]
[1725169880373,4.54835762,2466.7,2466.3,3.45108]
[1725169880568,2.2721,2467.2,2466.3,3.2078]
[1725169880769,0.24322,2467.1,2466.4,0.24327]
[1725169881079,4.52573179,2467.0,2466.4,0.24327]
[1725169881476,4.52573179,2467.0,2466.3,3.45108]
[1725169881681,0.24323,2466.9,2466.3,3.2078]
[1725169881973,4.75063035,2466.8,2466.3,3.7970544]
[1725169882171,7.02783035,2466.8,2466.3,3.2078]
[1725169882373,0.24325,2466.7,2466.3,3.2078]
[1725169883077,6.78459035,2466.8,2466.0,3.2078]
[1725169883078,3.2078,2466.6,2466.0,3.2078]
[1725169883271,0.2433,2466.2,2466.0,3.2078]
[1725169883576,0.2433,2466.2,2465.6,3.45115]
[1725169884078,0.2433,2466.2,2465.7,0.58933708]
[1725169884474,4.32848242,2466.1,2465.7,0.58933708]
[1725169884669,4.32848242,2466.1,2465.6,3.45116]
[1725169884872,4.32848242,2466.1,2465.6,4.04049708]
[1725169885072,4.32848242,2466.1,2465.6,3.45116]
[1725169885285,4.32848242,2466.1,2465.6,4.04049708]
[1725169885472,4.32848242,2466.1,2465.6,3.45116]
[1725169885871,4.32848242,2466.1,2465.6,3.2078]
[1725169886179,0.24333,2465.9,2465.6,3.2078]
[1725169886975,2.17738014,2466.0,2465.6,3.2078]
[1725169887279,0.24334,2465.8,2465.6,3.2078]
[1725169887479,2.17738014,2466.0,2465.6,3.2078]
[1725169887677,0.24334,2465.8,2465.6,3.2078]
[1725169888078,0.24335,2465.7,2465.6,3.2078]
[1725169888581,2.17738014,2466.0,2465.1,6.9378]
[1725169888582,0.24336,2465.6,2465.1,6.9378]
[1725169888777,2.50366,2465.6,2465.1,6.9378]
[1725169889481,2.2603,2465.6,2465.1,6.9378]
[1725169889778,2.50366,2465.6,2465.1,6.9378]
[1725169889980,0.24337,2465.5,2465.1,6.9378]
[1725169890478,2.2603,2465.6,2464.5,3.2078]
[1725169890479,4.25427115,2465.4,2464.5,3.2078]
[1725169890782,0.24345,2464.7,2464.4,3.2078]
[1725169891175,0.24344,2464.8,2464.4,3.2078]
[1725169892081,2.2898,2464.9,2464.4,3.2078]
[1725169892284,2.2898,2464.9,2464.4,3.45127]
[1725169892574,2.2898,2464.9,2464.4,3.2078]
[1725169892779,3.69028646,2465.0,2464.4,3.2078]
[1725169892989,3.69028646,2465.0,2464.7,3.45124]
[1725169893173,3.69028646,2465.0,2464.7,3.2078]
[1725169893577,0.24343,2464.9,2464.7,3.2078]
[1725169893777,0.24343,2464.8,2464.4,3.2078]
[1725169893991,0.24951014,2464.8,2464.4,3.2078]
[1725169894477,2.49471014,2464.8,2464.4,3.2078]
[1725169894675,0.24345,2464.7,2464.4,3.2078]
[1725169894873,2.25128014,2464.8,2464.4,3.2078]
[1725169895071,0.00608014,2464.8,2464.5,0.24346]
[1725169895486,0.00608014,2464.8,2464.5,4.30106]
[1725169895876,0.00608014,2464.8,2464.6,0.24345]
[1725169896072,0.00608014,2464.8,2464.7,3.2078]
[1725169896276,0.00608014,2464.8,2464.7,7.2654]
[1725169896679,0.00608014,2464.8,2464.7,7.50884]
[1725169896887,0.00608014,2464.8,2464.7,13.50884]
[1725169897189,0.0030428,2464.8,2464.7,13.50884]
[1725169898788,0.0030428,2464.8,2464.7,18.90039544]
[1725169900390,3.2078,2465.3,2465.2,0.2434]
[1725169900783,3.2078,2465.3,2465.2,4.056]
[1725169901275,3.2078,2465.3,2465.2,4.2994]
[1725169901683,0.00608014,2465.5,2465.2,4.056]
[1725169901879,0.00608014,2465.5,2465.0,3.45121]
[1725169902679,0.00608014,2465.5,2465.0,3.2078]
[1725169903076,0.00608014,2465.5,2465.0,3.45121]
[1725169903382,0.00608014,2465.5,2465.1,5.59243405]
[1725169903585,0.00608014,2465.5,2465.2,0.24339]
[1725169903889,0.00608014,2465.5,2465.1,4.056]
[1725169904190,0.00608014,2465.5,2465.2,0.2434]
[1725169904689,0.00608014,2465.5,2465.2,4.2994]
[1725169904889,0.00608014,2465.5,2465.2,4.056]
[1725169905090,0.00608014,2465.5,2465.2,4.29939]
[1725169906287,0.00608014,2465.5,2465.3,0.24338]
[1725169906491,0.00608014,2465.5,2465.2,4.29939]
[1725169907201,0.00608014,2465.5,2465.2,0.24339]
[1725169907889,0.00608014,2465.5,2465.3,0.24338]
[1725169908794,0.00608014,2465.5,2465.4,0.24338]
[1725169909292,0.00608014,2465.5,2465.4,4.29938]
[1725169909700,0.00608014,2465.5,2465.4,14.23510541]
[1725169909885,5.87158646,2466.3,2466.0,0.24331]
[1725169909886,3.69028646,2466.3,2466.0,0.24331]
[1725169910195,3.69028646,2466.6,2466.0,3.45111]
[1725169910899,3.69028646,2466.6,2466.0,3.2078]
[1725169911093,0.00608014,2466.5,2466.1,0.00608014]
[1725169911592,3.2078,2466.4,2466.1,0.00608014]
[1725169911788,0.24329,2466.3,2466.1,0.00608014]
[1725169912193,0.24328,2466.4,2466.1,0.00608014]
[1725169912386,0.00608014,2466.5,2466.1,0.00608014]
[1725169914401,0.00608014,2466.5,2466.2,0.58930495]
[1725169914586,0.00608014,2466.5,2466.1,0.00608014]
[1725169915197,0.00608014,2466.5,2466.2,0.58930486]
[1725169915392,0.00608014,2466.5,2466.1,0.00608014]
[1725169915591,0.00608014,2466.5,2466.2,0.5893056]
[1725169915791,0.00608014,2466.5,2466.1,0.00608014]
[1725169915992,0.00608014,2466.5,2466.2,0.58930557]
[1725169916200,0.00608014,2466.5,2466.1,0.00608014]
[1725169916505,3.2078,2466.2,2465.9,1.01133481]
[1725169916794,0.24332,2466.0,2465.6,3.2078]
[1725169917185,4.5783,2466.1,2465.6,3.2078]
[1725169917186,4.5783,2466.1,2465.7,0.58904801]
[1725169917390,0.24335,2465.7,2465.6,3.2078]
[1725169917592,4.29935,2465.7,2465.6,3.2078]
[1725169918101,4.5783,2466.1,2465.6,3.2078]
[1725169918289,8.6335,2466.1,2465.6,3.2078]
[1725169918487,0.24334,2465.8,2465.6,3.2078]
[1725169919598,2.52275,2465.7,2465.6,3.2078]
[1725169919901,2.2794,2465.7,2465.6,3.2078]
[1725169920398,6.3354,2465.7,2465.4,0.00608014]
[1725169920704,0.24337,2465.5,2465.4,0.00608014]
[1725169921000,4.3076151,2465.6,2465.0,3.2078]
[1725169921200,0.24339,2465.3,2465.1,0.58913657]
[1725169921407,4.371,2465.4,2464.7,3.2078]
[1725169921702,0.2434,2465.2,2464.8,1.44831838]
[1725169922000,0.00608014,2465.2,2465.1,0.2434]
[1725169922194,0.00608014,2465.2,2465.1,6.75968593]
[1725169922396,0.00608014,2465.2,2465.1,12.75968593]
[1725169922596,0.00608014,2465.2,2465.1,10.3002]
[1725169922899,0.00608014,2465.2,2465.1,12.75945546]
[1725169923096,0.00608014,2465.2,2465.1,13.39333144]
[1725169923797,0.00608014,2465.2,2465.1,6.51605546]
[1725169923998,0.00608014,2465.2,2465.1,2.45925546]
[1725169924201,0.00608014,2465.2,2465.1,1.44810155]
[1725169924393,0.00608014,2465.2,2465.1,6.51613496]
[1725169924598,0.00608014,2465.2,2465.1,12.75954496]
[1725169925002,0.00608014,2465.2,2465.1,13.39342094]
[1725169925302,0.00608014,2465.2,2465.1,15.11042094]
[1725169926004,0.00608014,2465.2,2465.1,12.01721]
[1725169926193,0.00608014,2465.2,2465.1,14.25129206]
[1725169926398,0.00608014,2465.2,2465.1,12.01721]
[1725169926705,0.00608014,2465.2,2465.1,15.11031071]
[1725169927308,0.00608014,2465.2,2465.1,16.16630521]
[1725169927507,0.00608014,2465.2,2465.1,15.92660553]
[1725169927800,0.00608014,2465.2,2465.1,16.56047747]
[1725169928105,0.00608014,2465.2,2465.1,15.50448297]
[1725169928303,0.00608014,2465.2,2465.1,15.92660553]
[1725169929797,0.00608014,2465.2,2465.1,13.46736855]
[1725169929997,0.00608014,2465.2,2465.1,15.9265823]
[1725169930201,0.00608014,2465.2,2465.1,7.9661723]
[1725169930405,0.00608014,2465.2,2465.1,3.09311026]
[1725169930604,0.00608014,2465.2,2465.1,2.45921375]
[1725169931196,0.00608014,2465.2,2465.1,3.48731178]
[1725169931804,0.00608014,2465.2,2465.1,7.78752178]
[1725169932008,0.00608014,2465.2,2465.1,17.00961977]
[1725169932909,0.00608014,2465.2,2465.1,17.5397791]
[1725169933205,0.00608014,2465.2,2465.1,16.61904568]
[1725169933406,0.00608014,2465.2,2465.1,10.4241701]
[1725169933606,0.00608014,2465.2,2465.1,4.5469477]
[1725169933908,0.00608014,2465.2,2465.1,3.09315538]
[1725169934106,0.00608014,2465.2,2465.1,2.45924289]
[1725169934605,0.00608014,2465.2,2465.1,3.09315538]
[1725169934803,0.00608014,2465.2,2465.1,3.48734027]
[1725169935909,0.00608014,2465.2,2465.1,3.09315538]
[1725169936105,0.00608014,2465.2,2465.1,2.45924289]
[1725169936599,2.32658014,2465.2,2465.1,2.45924289]
[1725169936799,2.56998014,2465.2,2465.1,2.45924289]
[1725169937007,6.62678014,2465.2,2465.1,2.45924289]
[1725169937202,2.32658014,2465.2,2465.1,1.44809442]
[1725169937409,2.32658014,2465.2,2465.1,2.45937584]
[1725169940199,2.56958014,2465.2,2465.1,2.45937584]
[1725169940404,2.56958014,2465.2,2465.1,2.45958601]
[1725169941109,2.81298014,2465.2,2465.1,2.45958601]
[1725169941414,2.81298014,2465.2,2465.1,1.44828839]
[1725169942706,6.86978014,2465.2,2464.8,0.63399568]
[1725169942910,2.81298014,2465.2,2464.9,1.87048982]
[1725169943108,2.81298014,2465.2,2465.0,1.87048982]
[1725169943307,2.81298014,2465.2,2464.8,0.63399568]
[1725169943308,2.81298014,2465.2,2465.1,1.87048227]
[1725169943502,2.56958014,2465.2,2465.1,0.85916254]
[1725169943707,2.56958014,2465.2,2465.1,1.8698417]
[1725169945520,0.24908014,2465.2,2465.1,18.96267479]
[1725169945816,3.69028646,2465.9,2465.1,25.75704492]
[1725169946012,3.69028646,2465.9,2465.5,3.84161613]
[1725169946213,0.24333,2465.9,2465.6,1.8698417]
[1725169946407,0.24334,2465.8,2465.7,0.85916254]
[1725169947216,4.29854,2465.8,2465.7,0.85916254]
[1725169947413,0.24333,2465.9,2465.7,0.85916254]
[1725169947713,0.24333,2465.9,2465.8,0.85916254]
[1725169948115,4.29853,2465.9,2465.8,0.85916254]
[1725169949315,0.24333,2465.9,2465.8,0.85916254]
[1725169949510,4.76620014,2466.0,2465.8,0.85916254]
[1725169949718,4.52288014,2466.0,2465.5,3.21388014]
[1725169949917,4.52288014,2466.0,2465.6,1.86871617]
[1725169950115,4.52288014,2466.0,2465.7,1.86871617]
[1725169950310,4.52288014,2466.0,2465.8,0.85829876]
[1725169950621,4.52288014,2466.0,2465.9,0.85829876]
[1725169951021,8.57808014,2466.0,2465.9,0.85829876]
[1725169951212,8.57808014,2466.0,2465.5,3.21388014]
[1725169951520,4.52288014,2466.0,2465.6,1.8687116]
[1725169951818,4.52288014,2466.0,2465.7,1.8687116]
[1725169952020,4.52288014,2466.0,2465.8,0.85829673]
[1725169952224,4.52288014,2466.0,2465.5,3.21388014]
[1725169952420,4.76620014,2466.0,2465.6,1.86871469]
[1725169952622,4.76620014,2466.0,2465.7,1.86871469]
[1725169952808,4.52288014,2466.0,2465.8,0.8582981]
[1725169953011,4.52288014,2466.0,2465.5,3.21388014]
[1725169953316,4.52288014,2466.0,2465.6,1.86871457]
[1725169953516,4.52288014,2466.0,2465.7,1.86871457]
[1725169953822,4.52288014,2466.0,2465.8,0.85829806]
[1725169954224,0.24333,2465.9,2465.5,3.21388014]
[1725169954420,0.24335,2465.7,2465.6,0.85829854]
[1725169954721,0.24334,2465.8,2465.6,1.44681859]
[1725169954925,4.29935,2465.7,2465.5,0.00608014]
[1725169955121,8.82140014,2466.0,2465.6,1.44687062]
[1725169955417,4.76620014,2466.0,2465.7,1.44687062]
[1725169955726,4.45258814,2465.9,2465.8,0.58851771]
[1725169956114,8.50778814,2465.9,2465.8,0.58851771]
[1725169956421,4.0552,2465.9,2465.8,1.44683752]
[1725169956718,4.0552,2465.9,2465.4,1.06026608]
[1725169956719,12.8552,2465.9,2465.4,1.06026608]